bitfinex-derivatives/quotes_ETHF0:USTF0_20250607
["timestamp","ask_amount","ask_price","bid_price","bid_amount"]
[1749318994577,0.79706,2507.8,2507.7,0.79704]
[1749318994978,0.79707,2507.7,2507.6,3.45478]
[1749318995971,0.79707,2507.7,2507.6,3.52369172]
[1749318997174,1.99417393,2507.7,2507.6,3.52369172]
[1749318997880,1.19710393,2507.7,2507.6,3.52369172]
[1749318998081,1.99417393,2507.7,2507.6,3.52371172]
[1749319000782,1.99417393,2507.7,2507.6,6.73151172]
[1749319002186,1.99417393,2507.7,2507.6,3.96931172]
[1749319004196,1.99417393,2507.7,2507.6,0.06891172]
[1749319004895,2.69317393,2507.7,2507.6,0.06891172]
[1749319005098,3.97627393,2507.7,2507.6,0.06891172]
[1749319005790,8.59127393,2507.7,2507.6,0.06891172]
[1749319006094,7.30817393,2507.7,2507.6,0.06891172]
[1749319006696,8.70697393,2507.7,2507.6,0.06891172]
[1749319010295,7.30817393,2507.7,2507.6,0.06891172]
[1749319012803,1.19710393,2507.7,2507.6,4.07381172]
[1749319014207,1.99417393,2507.7,2507.6,5.47381172]
[1749319015305,1.19710393,2507.7,2507.6,5.47381172]
[1749319015706,1.99417393,2507.7,2507.6,5.47381172]
[1749319015907,1.19710393,2507.7,2507.6,5.47381172]
[1749319018511,0.79705,2507.8,2507.7,0.79707]
[1749319018705,1.98951529,2507.8,2507.7,0.79707]
[1749319019409,1.99826669,2508.2,2508.1,0.79694]
[1749319019410,0.00597669,2508.2,2508.1,0.79694]
[1749319019618,1.19859994,2508.2,2508.1,4.00474]
[1749319019806,1.19859994,2508.2,2508.1,5.39824]
[1749319020006,1.19859994,2508.2,2508.1,6.06534]
[1749319021012,1.1994352,2508.2,2508.1,6.06534]
[1749319021809,1.19893246,2508.2,2508.1,6.06534]
[1749319023114,0.00597669,2508.2,2508.1,6.06534]
[1749319026410,0.00597669,2508.2,2508.1,6.13425172]
[1749319027314,1.99156,2509.1,2508.1,6.13425172]
[1749319027515,0.6396,2508.7,2508.6,4.00458]
[1749319027918,1.43635,2508.7,2508.6,4.00458]
[1749319028815,0.6396,2508.7,2508.6,4.00458]
[1749319029316,1.43635,2508.7,2508.6,4.00458]
[1749319030018,1.43635,2508.7,2508.6,5.33698]
[1749319030213,0.6396,2508.7,2508.6,5.33698]
[1749319030716,1.43635,2508.7,2508.6,5.33698]
[1749319032417,0.79674,2508.8,2508.7,0.79675]
[1749319032621,0.79674,2508.8,2508.7,1.44165]
[1749319033623,1.47277669,2508.9,2508.8,0.79672]
[1749319033823,1.47279669,2508.9,2508.8,0.79672]
[1749319034621,1.47279669,2508.9,2508.7,0.6449]
[1749319034622,0.79672,2508.8,2508.7,1.44163]
[1749319035426,1.47277669,2508.9,2508.8,0.79672]
[1749319038430,0.79672,2508.8,2508.7,2.81822]
[1749319040531,0.79672,2508.8,2508.7,2.88713172]
[1749319041732,0.79672,2508.8,2508.7,1.51053172]
[1749319043834,0.67607669,2508.9,2508.7,0.71381172]
[1749319044035,0.79672,2508.8,2508.7,1.51054172]
[1749319046228,1.47276669,2508.9,2508.8,0.79672]
[1749319046432,2.66583444,2508.9,2508.8,0.79672]
[1749319046937,0.79672,2508.8,2508.7,4.71833172]
[1749319047139,1.86914444,2508.9,2508.7,4.71833172]
[1749319047140,0.67607669,2508.9,2508.7,3.27671172]
[1749319047341,0.79672,2508.8,2508.7,4.07344172]
[1749319048137,1.99088875,2508.8,2508.7,4.07344172]
[1749319049333,1.19416875,2508.8,2508.7,4.07344172]
[1749319050840,1.19416875,2508.8,2508.7,0.86564172]
[1749319051342,1.19416875,2508.8,2508.7,4.07344172]
[1749319051543,1.19416875,2508.8,2508.7,0.86564172]
[1749319051739,1.19416875,2508.8,2508.7,4.07344172]
[1749319052038,1.19416875,2508.8,2508.7,0.86564172]
[1749319054247,1.99088875,2508.8,2508.7,0.86564172]
[1749319055640,1.19416875,2508.8,2508.7,0.86564172]
[1749319056146,1.99088875,2508.8,2508.7,0.06891172]
[1749319056346,8.58258875,2508.8,2508.7,0.06891172]
[1749319057044,13.58258875,2508.8,2508.7,0.06891172]
[1749319057245,0.79694,2508.1,2508.0,3.2078]
[1749319057553,0.79697,2508.0,2507.9,0.00597669]
[1749319057850,0.79697,2508.0,2507.9,0.80295669]
[1749319058048,1.19729328,2508.0,2507.9,0.80295669]
[1749319058249,1.99426328,2508.0,2507.9,0.80295669]
[1749319058653,1.19729328,2508.0,2507.9,0.80295669]
[1749319060255,1.99426328,2508.0,2507.9,0.00597669]
[1749319060456,1.99426328,2508.0,2507.9,0.80297669]
[1749319061449,1.99098654,2508.0,2507.9,0.80297669]
[1749319061752,1.99098654,2508.0,2507.9,0.00597669]
[1749319061753,0.79697,2508.0,2507.9,0.00597669]
[1749319061957,1.99098183,2508.0,2507.9,0.00597669]
[1749319062156,0.79697,2508.0,2507.9,0.00597669]
[1749319062460,1.99054367,2508.0,2507.9,0.00597669]
[1749319062652,1.19357367,2508.0,2507.9,0.80297669]
[1749319062952,0.6488,2508.1,2508.0,0.79697]
[1749319063155,2.63920169,2508.1,2508.0,0.79697]
[1749319063651,1.84226169,2508.1,2508.0,0.79697]
[1749319063848,2.63920169,2508.1,2508.0,0.79697]
[1749319066362,1.44574,2508.1,2508.0,0.79697]
[1749319069965,1.44574,2508.1,2508.0,0.86588172]
[1749319075273,1.44574,2508.1,2508.0,0.06891172]
[1749319076075,1.44574,2508.1,2508.0,0.86588172]
[1749319076669,1.44574,2508.1,2508.0,0.06891172]
[1749319077266,1.44574,2508.1,2508.0,0.86588172]
[1749319078275,2.63738715,2508.1,2508.0,0.86588172]
[1749319079469,2.63738715,2508.1,2508.0,0.06891172]
[1749319081077,3.98058715,2508.1,2508.0,0.06891172]
[1749319085282,3.98306412,2508.1,2508.0,0.06891172]
[1749319098389,2.63986412,2508.1,2508.0,0.06891172]
[1749319117099,1.44574,2508.1,2508.0,0.06891172]
[1749319117303,2.641762,2508.1,2508.0,0.06891172]
[1749319122597,2.64143066,2508.1,2508.0,0.06891172]
[1749319137517,1.99263066,2508.1,2508.0,0.06891172]
[1749319137717,1.99263066,2508.1,2508.0,1.46301172]
[1749319144120,1.99263066,2508.1,2508.0,1.3941]
[1749319145015,1.99263066,2508.1,2508.0,1.46301172]
[1749319145415,1.98836398,2508.1,2508.0,1.46301172]
[1749319148017,1.98836398,2508.1,2508.0,5.46778172]
[1749319148221,1.97826252,2508.1,2508.0,5.46778172]
[1749319148418,1.97826252,2508.1,2508.0,4.67081172]
[1749319148619,1.97826252,2508.1,2508.0,5.46778172]
[1749319149618,1.97826252,2508.1,2508.0,4.67081172]
[1749319149825,1.97826252,2508.1,2508.0,1.46301172]
[1749319150123,1.97826252,2508.1,2508.0,1.3941]
[1749319152022,0.79697,2508.0,2507.9,1.49385669]
[1749319152417,0.79697,2508.0,2507.9,2.78135669]
[1749319154423,0.79696,2508.1,2508.0,0.79694]
[1749319154625,0.79696,2508.1,2508.0,2.17034]
[1749319155122,0.79696,2508.1,2508.0,2.23925172]
[1749319158622,0.79696,2508.1,2508.0,5.44705172]
[1749319162624,0.79694,2508.2,2508.1,0.79691]
[1749319162925,1.97597571,2508.2,2508.1,2.14381]
[1749319163730,0.79683,2508.5,2508.4,0.79682]
[1749319163931,1.97609103,2508.5,2508.4,0.79682]
[1749319165126,1.97607103,2508.5,2508.4,0.79682]
[1749319165731,1.17926103,2508.5,2508.4,0.79682]
[1749319165930,1.17926103,2508.5,2508.4,2.11952]
[1749319166137,0.6527,2508.6,2508.5,0.79682]
[1749319166327,1.83179961,2508.6,2508.5,0.79682]
[1749319167227,0.6527,2508.6,2508.5,0.79682]
[1749319167828,13.57426357,2508.8,2508.4,1.3227]
[1749319168129,0.00597669,2508.9,2508.8,0.79672]
[1749319168628,0.00597669,2508.9,2508.8,1.42922]
[1749319169630,0.00597669,2508.9,2508.6,5.19975]
[1749319169631,0.00597669,2508.9,2508.6,3.2078]
[1749319169835,0.00597669,2508.9,2508.8,0.79672]
[1749319174636,0.00597669,2508.9,2508.8,1.49402]
[1749319175438,0.00597669,2508.9,2508.8,1.56293172]
[1749319176437,0.00597669,2508.9,2508.8,1.49402]
[1749319177539,0.00597669,2508.9,2508.8,1.56293172]
[1749319178439,0.80266669,2508.9,2508.8,0.86563172]
[1749319178634,1.47636669,2508.9,2508.8,0.86563172]
[1749319179431,0.67967669,2508.9,2508.8,0.86563172]
[1749319179637,1.47636669,2508.9,2508.8,0.79672]
[1749319179843,0.67967669,2508.9,2508.8,0.79672]
[1749319180637,1.47636669,2508.9,2508.8,0.86563172]
[1749319183546,1.47636669,2508.9,2508.8,0.79672]
[1749319184537,1.47636669,2508.9,2508.8,0.86563172]
[1749319184744,0.67967669,2508.9,2508.8,0.86563172]
[1749319185046,1.47636669,2508.9,2508.8,0.86563172]
[1749319187553,1.47636669,2508.9,2508.8,0.06891172]
[1749319187846,6.08536669,2508.9,2508.8,0.06891172]
[1749319188050,7.2623641,2508.9,2508.8,0.06891172]
[1749319188443,8.5563641,2508.9,2508.8,0.06891172]
[1749319188642,0.79675,2508.7,2508.6,3.2078]
[1749319191758,0.79675,2508.7,2508.6,3.27671172]
[1749319192358,0.79675,2508.7,2508.6,4.07349172]
[1749319192653,0.79675,2508.7,2508.6,3.27671172]
[1749319193560,0.79675,2508.7,2508.6,4.07349172]
[1749319194056,1.97492214,2508.7,2508.6,4.07349172]
[1749319194359,0.79675,2508.7,2508.6,4.07349172]
[1749319194759,1.97515428,2508.7,2508.6,4.07349172]
[1749319195458,1.97515428,2508.7,2508.6,0.86569172]
[1749319197965,5.40674,2508.8,2508.7,0.79675]
[1749319198259,6.58552408,2508.8,2508.7,0.79675]
[1749319198462,6.58552408,2508.8,2508.7,4.00455]
[1749319199961,6.58552408,2508.8,2508.7,3.2078]
[1749319200164,0.79675,2508.7,2508.6,0.86567172]
[1749319200360,0.79675,2508.7,2508.6,0.06891172]
[1749319200656,1.97586188,2508.7,2508.6,0.06891172]
[1749319201163,3.26666188,2508.7,2508.6,0.06891172]
[1749319201859,8.26666188,2508.7,2508.6,0.06891172]
[1749319202157,0.79697,2508.0,2507.9,0.00597669]
[1749319202359,3.2078,2508.5,2507.9,1.99846669]
[1749319202666,1.17785453,2508.4,2508.2,0.79689]
[1749319202866,0.79691,2508.2,2508.1,1.44023]
[1749319203165,0.7969,2508.3,2508.2,0.7969]
[1749319203358,0.7969,2508.3,2508.2,0.79691]
[1749319203659,0.79691,2508.2,2508.1,2.0238]
[1749319203859,0.79689,2508.3,2508.2,0.79689]
[1749319204059,3.2078,2508.5,2508.4,0.79684]
[1749319204761,0.00597669,2508.9,2508.4,1.3175]
[1749319205065,2.63809145,2508.8,2508.7,0.79675]
[1749319205263,0.79675,2508.7,2508.6,0.86568172]
[1749319205659,0.79675,2508.7,2508.6,0.86569172]
[1749319206258,0.79675,2508.7,2508.6,0.06891172]
[1749319206569,0.79675,2508.7,2508.6,0.86569172]
[1749319206767,0.79675,2508.7,2508.6,0.06891172]
[1749319207263,0.79675,2508.7,2508.6,0.86569172]
[1749319207469,0.79675,2508.8,2508.7,0.79675]
[1749319207671,0.80268669,2508.9,2508.8,0.79672]
[1749319207862,0.80268669,2508.9,2508.8,2.16632]
[1749319208064,1.98096823,2508.9,2508.8,2.16632]
[1749319208464,1.98096823,2508.9,2508.8,1.3696]
[1749319208669,0.79672,2508.8,2508.7,0.6814]
[1749319209363,1.45822,2508.8,2508.7,0.6814]
[1749319209667,1.45822,2508.8,2508.7,1.47815]
[1749319211273,0.80267669,2508.9,2508.8,0.79672]
[1749319211867,1.98186144,2508.9,2508.8,0.79672]
[1749319213773,1.18516144,2508.9,2508.8,0.79672]
[1749319214073,1.18516144,2508.9,2508.8,2.09342]
[1749319214373,0.00597669,2508.9,2508.8,2.09342]
[1749319214873,0.80266669,2508.9,2508.8,1.2967]
[1749319215073,0.80266669,2508.9,2508.8,2.09342]
[1749319219177,0.00597669,2508.9,2508.8,2.09342]
[1749319219773,0.80266669,2508.9,2508.8,2.77632]
[1749319220273,0.80266669,2508.9,2508.8,2.84523172]
[1749319223777,0.00597669,2508.9,2508.8,2.84523172]
[1749319229682,0.00597669,2508.9,2508.8,6.05303172]
[1749319237583,0.00597669,2508.9,2508.8,5.98412]
[1749319240588,0.00597669,2508.9,2508.8,6.05303172]
[1749319241681,0.00597669,2508.9,2508.8,5.98412]
[1749319243291,0.00597669,2508.9,2508.8,2.77632]
[1749319243591,0.00597669,2508.9,2508.8,5.98412]
[1749319246686,0.00597669,2508.9,2508.8,6.05303172]
[1749319248594,0.00597669,2508.9,2508.8,5.98412]
[1749319249588,0.00597669,2508.9,2508.8,6.05303172]
[1749319251798,0.00597669,2508.9,2508.8,5.98412]
[1749319254490,0.669,2509.5,2508.8,9.7974]
[1749319254691,1.90098028,2509.4,2509.3,0.79656]
[1749319255294,0.6959,2509.4,2509.3,0.79656]
[1749319256803,0.6959,2509.4,2509.3,1.17766]
[1749319259697,0.6959,2509.4,2509.3,0.3811]
[1749319259903,3.46803,2509.4,2509.3,0.3811]
[1749319260102,4.67196746,2509.4,2509.3,0.3811]
[1749319262108,4.67196746,2509.4,2509.3,1.17766]
[1749319262306,4.67196746,2509.4,2509.3,0.3811]
[1749319262507,4.67196746,2509.4,2509.3,1.17767]
[1749319262803,4.67196746,2509.4,2509.3,0.3811]
[1749319264412,4.67196746,2509.4,2509.3,1.17766]
[1749319265312,3.87543746,2509.4,2509.3,1.17766]
[1749319265509,1.89983746,2509.4,2509.3,1.17766]
[1749319265805,1.89914143,2509.4,2509.3,1.17766]
[1749319266006,1.89914143,2509.4,2509.3,1.24657172]
[1749319269812,0.00597669,2509.6,2509.5,0.7965]
[1749319270014,0.69737669,2509.6,2509.5,0.7965]
[1749319270411,0.69737669,2509.6,2509.5,1.4888]
[1749319271704,30.0414,2510.1,2510.0,0.79634]
[1749319272013,7.14157706,2510.1,2510.0,0.79634]
[1749319272408,0.79635,2510.0,2509.9,0.79635]
[1749319272611,1.99952706,2510.0,2509.9,0.79635]
[1749319273007,2.63852706,2510.0,2509.9,0.79635]
[1749319273914,1.84217706,2510.0,2509.9,0.79635]
[1749319274305,1.84238331,2510.0,2509.9,0.79635]
[1749319280418,2.63872331,2510.0,2509.9,0.79635]
[1749319281818,1.84238331,2510.0,2509.9,0.79635]
[1749319284018,2.63872331,2510.0,2509.9,0.79635]
[1749319284922,1.84238331,2510.0,2509.9,0.79635]
[1749319286421,2.63872331,2510.0,2509.9,0.79635]
[1749319293619,1.84238331,2510.0,2509.9,0.79635]
[1749319295232,2.63872331,2510.0,2509.9,0.79635]
[1749319296631,1.84238331,2510.0,2509.9,0.79635]
[1749319297129,1.84238331,2510.0,2509.9,1.17485]
[1749319297334,2.63872331,2510.0,2509.9,1.17485]
[1749319298929,1.84238331,2510.0,2509.9,1.17485]
[1749319299424,2.63872331,2510.0,2509.9,0.3785]
[1749319301023,1.84238331,2510.0,2509.9,1.17487]
[1749319301727,1.84019525,2510.0,2509.9,1.17487]
[1749319302329,2.63653525,2510.0,2509.9,1.17487]
[1749319303529,1.84019525,2510.0,2509.9,1.17487]
[1749319304130,2.63653525,2510.0,2509.9,1.17487]
[1749319306035,1.84019525,2510.0,2509.9,1.17487]
[1749319307033,1.84046036,2510.0,2509.9,1.17487]
[1749319307933,1.20146036,2510.0,2509.9,1.17487]
[1749319308137,1.20146036,2510.0,2509.9,2.48227]
[1749319309335,0.00597669,2510.2,2510.1,0.79631]
[1749319309531,1.20346109,2510.2,2510.1,0.79631]
[1749319311031,1.20346109,2510.2,2510.1,1.47951]
[1749319317642,1.20346109,2510.2,2510.1,2.16431]
[1749319320332,1.99974109,2510.2,2510.1,1.368]
[1749319320641,1.99974109,2510.2,2510.1,0.79631]
[1749319321142,1.20346109,2510.2,2510.1,0.79631]
[1749319321534,1.99974109,2510.2,2510.1,0.79631]
[1749319324347,1.20346109,2510.2,2510.1,0.79631]
[1749319326043,1.20300041,2510.2,2510.1,0.79631]
[1749319327040,1.20300041,2510.2,2510.1,1.43351]
[1749319327243,1.20300041,2510.2,2510.1,2.76551]
[1749319329243,4.608,2510.7,2510.6,0.79615]
[1749319329549,5.80500885,2510.7,2510.6,0.79615]
[1749319330138,6.60112885,2510.7,2510.6,0.79615]
[1749319332446,1.99312885,2510.7,2510.6,0.79615]
[1749319332647,4.607,2511.6,2510.6,3.2078]
[1749319332852,7.2583,2511.6,2511.2,0.79594]
[1749319333354,1.3102,2511.5,2511.2,0.79594]
[1749319333941,2.10609,2511.5,2511.0,3.2078]
[1749319334152,1.3102,2511.5,2511.3,0.7959]
[1749319334553,0.79592,2511.4,2511.3,0.79592]
[1749319334753,0.79592,2511.4,2511.2,0.79594]
[1749319335053,0.6435,2511.3,2511.2,0.79594]
[1749319335553,1.43945,2511.3,2511.1,0.6463]
[1749319335747,1.43945,2511.3,2511.2,0.79596]
[1749319336449,1.43945,2511.3,2511.1,0.79598]
[1749319337261,1.43945,2511.3,2511.2,0.79596]
[1749319337555,1.43945,2511.3,2511.0,4.5372]
[1749319337752,1.43945,2511.3,2511.2,0.79596]
[1749319340153,1.50836172,2511.3,2511.2,0.79596]
[1749319340952,0.71241172,2511.3,2511.2,0.79596]
[1749319341159,0.6435,2511.3,2511.2,0.79596]
[1749319341361,1.43943,2511.3,2511.2,0.79596]
[1749319341658,1.43943,2511.3,2511.2,1.17646]
[1749319341855,0.6435,2511.3,2511.2,1.17646]
[1749319342356,1.43943,2511.3,2511.2,1.17646]
[1749319343658,1.43943,2511.3,2511.2,0.3805]
[1749319344759,1.43943,2511.3,2511.2,1.17646]
[1749319348263,1.50834172,2511.3,2511.2,1.17646]
[1749319350366,0.00597669,2511.6,2511.5,0.79586]
[1749319350565,0.80180669,2511.6,2511.5,0.79586]
[1749319350860,1.43300669,2511.6,2511.5,0.79586]
[1749319351454,1.43300669,2511.6,2511.3,4.5521]
[1749319351455,0.7959,2511.4,2511.3,3.2078]
[1749319352054,2.195,2511.4,2511.3,3.2078]
[1749319352755,0.63717669,2511.6,2511.4,0.7959]
[1749319352953,5.40088,2511.5,2511.4,0.7959]
[1749319353155,0.63717669,2511.6,2511.5,0.79586]
[1749319353762,0.63717669,2511.6,2511.5,2.87466]
[1749319355363,0.63717669,2511.6,2511.5,0.79586]
[1749319356365,1.43300669,2511.6,2511.5,0.79586]
[1749319356657,0.79587,2511.5,2511.4,1.42997]
[1749319356866,0.79588,2511.5,2511.4,0.79588]
[1749319357259,1.43302669,2511.6,2511.5,0.79587]
[1749319357753,1.43301669,2511.6,2511.5,0.79586]
[1749319358667,0.63717669,2511.6,2511.5,0.79586]
[1749319359366,0.00597669,2511.6,2511.5,0.79586]
[1749319359555,0.07488841,2511.6,2511.5,2.16286]
[1749319360561,0.00597669,2511.6,2511.5,2.16286]
[1749319361563,0.6992,2512.0,2511.9,0.79574]
[1749319361758,1.16104747,2512.0,2511.7,5.19727]
[1749319361966,0.6992,2512.2,2511.7,7.19937]
[1749319362163,1.95669845,2512.1,2511.7,7.19937]
[1749319362363,1.16141761,2512.0,2511.7,7.19937]
[1749319362667,0.79966446,2512.1,2512.0,0.79571]
[1749319362863,1.96108161,2512.1,2512.0,0.79571]
[1749319363265,1.16540161,2512.1,2511.7,3.2078]
[1749319363459,0.79577,2511.8,2511.7,3.2078]
[1749319363661,1.95718715,2511.8,2511.7,3.2078]
[1749319364263,0.79577,2511.8,2511.7,3.2078]
[1749319364464,1.16160634,2511.8,2511.7,4.0036]
[1749319364765,0.79576,2511.9,2511.7,4.0036]
[1749319365067,0.6796,2511.8,2511.7,4.0036]
[1749319367366,0.79573,2512.0,2511.8,0.79577]
[1749319367574,1.16136574,2511.9,2511.8,0.79577]
[1749319367874,1.95710574,2511.9,2511.8,2.80847]
[1749319368379,0.79574,2511.9,2511.8,2.80847]
[1749319368973,1.95700872,2511.9,2511.8,1.44597]
[1749319369482,0.79574,2511.9,2511.8,1.44597]
[1749319369675,0.79574,2511.9,2511.8,0.6502]
[1749319369877,1.95701658,2511.9,2511.8,0.6502]
[1749319370677,0.86468172,2511.8,2511.7,3.2078]
[1749319370882,1.54668172,2511.8,2511.7,3.2078]
[1749319371876,1.54668172,2511.8,2511.7,4.0036]
[1749319372384,1.54668172,2511.8,2511.7,3.2078]
[1749319373282,2.70819907,2511.8,2511.7,3.2078]
[1749319373484,1.54668172,2511.8,2511.7,4.0036]
[1749319374489,1.54668172,2511.8,2511.7,3.2078]
[1749319376381,2.70828079,2511.8,2511.7,3.2078]
[1749319376581,1.54668172,2511.8,2511.7,3.2078]
[1749319376981,2.70827855,2511.8,2511.7,3.2078]
[1749319377181,1.54668172,2511.8,2511.7,4.0036]
[1749319377386,2.70847633,2511.8,2511.7,4.6854]
[1749319377585,2.70847633,2511.8,2511.7,3.8896]
[1749319377884,2.70846396,2511.8,2511.7,3.8896]
[1749319379787,0.7958,2511.7,2511.6,0.80178669]
[1749319379990,0.7958,2511.7,2511.6,1.48398669]
[1749319380486,1.95835276,2511.7,2511.6,0.00597669]
[1749319380688,3.89375276,2511.7,2511.6,0.00597669]
[1749319381783,3.89375276,2511.7,2511.6,0.39337669]
[1749319385992,3.96327805,2511.7,2511.6,0.39337669]
[1749319386792,3.96327805,2511.7,2511.6,1.18920669]
[1749319386992,3.89436633,2511.7,2511.6,0.39337669]
[1749319388492,3.89436633,2511.7,2511.6,1.18920669]
[1749319389189,1.16316633,2511.7,2511.6,1.18920669]
[1749319390693,1.16316633,2511.7,2511.6,4.39700669]
[1749319393094,4.604,2511.9,2511.8,0.79577]
[1749319393293,1.16334857,2511.9,2511.8,0.79577]
[1749319393700,0.00398446,2512.1,2512.0,0.79571]
[1749319393998,1.16724416,2512.1,2512.0,4.00351]
[1749319394199,1.16724416,2512.1,2512.0,5.33981]
[1749319394396,1.16724416,2512.1,2512.0,5.98831]
[1749319394600,0.00398446,2512.1,2512.0,5.98831]
[1749319398599,0.79965446,2512.1,2512.0,5.1926]
[1749319398904,0.79965446,2512.1,2512.0,5.98831]
[1749319399105,0.00398446,2512.1,2512.0,5.98831]
[1749319400306,0.86857618,2512.1,2512.0,5.98831]
[1749319401803,0.07289618,2512.1,2512.0,5.98831]
[1749319402506,0.86856618,2512.1,2512.0,4.65201]
[1749319403004,0.07289618,2512.1,2512.0,4.65201]
[1749319403303,0.07289618,2512.1,2512.0,6.03411]
[1749319408616,1.4875,2512.7,2512.6,0.79552]
[1749319408807,0.79553,2512.6,2512.5,0.79553]
[1749319409007,1.95648941,2512.6,2512.5,0.79553]
[1749319409208,1.16095941,2512.6,2512.5,0.79553]
[1749319409616,1.48751,2512.7,2512.6,0.79552]
[1749319409808,2.64832321,2512.7,2512.6,0.79552]
[1749319410114,0.79552,2512.6,2512.5,2.15404]
[1749319410807,1.95622166,2512.6,2512.5,2.15404]
[1749319411009,0.79552,2512.6,2512.5,2.15404]
[1749319411216,1.95622158,2512.6,2512.5,2.15404]
[1749319411415,0.79552,2512.6,2512.5,2.15404]
[1749319412514,0.79552,2512.6,2512.5,0.79554]
[1749319414416,0.86443172,2512.6,2512.5,0.79554]
[1749319414716,2.02552345,2512.6,2512.5,0.79554]
[1749319414918,0.86443172,2512.6,2512.5,0.79554]
[1749319415411,2.0256529,2512.6,2512.5,0.79554]
[1749319417915,0.79555,2512.5,2512.4,3.2078]
[1749319418415,1.98897,2512.4,2512.0,0.79568]
[1749319418718,0.79566,2512.2,2512.1,0.79566]
[1749319418908,0.6585,2512.3,2512.2,0.79564]
[1749319419114,1.82038162,2512.3,2512.2,0.79564]
[1749319419617,0.6585,2512.3,2512.2,0.79564]
[1749319420310,1.52255172,2512.6,2512.5,0.79555]
[1749319420512,0.79557,2512.5,2512.4,0.79557]
[1749319420714,1.16212932,2512.5,2512.4,0.79557]
[1749319421018,1.16212932,2512.5,2512.2,3.2078]
[1749319421221,0.79561,2512.3,2512.2,3.2078]
[1749319422513,0.79561,2512.3,2512.2,4.00343]
[1749319424015,1.95930876,2512.3,2512.2,4.00343]
[1749319424616,0.79561,2512.3,2512.2,4.00343]
[1749319424823,1.95935907,2512.3,2512.2,4.00343]
[1749319425622,0.79561,2512.3,2512.2,4.00343]
[1749319425823,0.7956,2512.4,2512.3,0.79561]
[1749319426022,1.95937046,2512.4,2512.3,0.79561]
[1749319426821,0.79561,2512.3,2512.2,4.00342]
[1749319427119,0.72701172,2512.6,2512.2,3.2078]
[1749319427315,0.79558,2512.4,2512.3,0.79558]
[1749319427520,1.95931026,2512.4,2512.3,0.79558]
[1749319428123,1.16373026,2512.4,2512.3,0.79558]
[1749319428325,1.95931026,2512.4,2512.3,0.79558]
[1749319431527,1.16373026,2512.4,2512.3,0.79558]
[1749319432118,0.6596,2512.6,2512.5,0.79555]
[1749319432320,1.81820975,2512.6,2512.5,0.79555]
[1749319432521,1.81820975,2512.6,2512.5,4.00335]
[1749319432726,1.15860975,2512.6,2512.5,4.00335]
[1749319432926,1.15860975,2512.6,2512.5,4.40085]
[1749319435935,1.15860975,2512.6,2512.5,1.19305]
[1749319437538,1.15860975,2512.6,2512.5,2.45675]
[1749319442139,0.6934,2512.7,2512.6,0.79552]
[1749319442342,1.85335878,2512.7,2512.6,0.79552]
[1749319442637,1.15995878,2512.7,2512.6,0.79552]
[1749319442843,1.15995878,2512.7,2512.6,2.18842]
[1749319443242,1.95543878,2512.7,2512.6,2.18842]
[1749319444747,1.15995878,2512.7,2512.6,2.18842]
[1749319445743,1.95544878,2512.7,2512.6,2.18842]
[1749319446245,1.15995878,2512.7,2512.6,2.18842]
[1749319447043,1.95543878,2512.7,2512.6,2.18842]
[1749319447349,1.95543878,2512.7,2512.6,1.3929]
[1749319447548,1.95543878,2512.7,2512.6,2.18842]
[1749319447952,1.95543878,2512.7,2512.6,0.79552]
[1749319448448,1.15995878,2512.7,2512.6,0.79552]
[1749319448844,1.15995878,2512.7,2512.6,4.00332]
[1749319449351,0.6772,2512.9,2512.8,0.79545]
[1749319449640,1.83713661,2512.9,2512.8,0.79545]
[1749319449846,2.63255661,2512.9,2512.8,0.79545]
[1749319453544,1.15993661,2512.9,2512.8,0.79545]
[1749319453850,1.15993661,2512.9,2512.8,2.79375]
[1749319454353,1.95535661,2512.9,2512.8,2.79375]
[1749319454542,1.15993661,2512.9,2512.8,2.79375]
[1749319455450,1.95535661,2512.9,2512.8,2.79375]
[1749319455646,1.15993661,2512.9,2512.8,2.79375]
[1749319456051,1.95535661,2512.9,2512.8,2.79375]
[1749319456254,1.15993661,2512.9,2512.8,2.79375]
[1749319456546,1.95535661,2512.9,2512.8,2.79375]
[1749319457050,1.95535661,2512.9,2512.8,1.44225]
[1749319457953,1.95031468,2512.9,2512.8,1.44225]
[1749319458453,1.95031468,2512.9,2512.8,0.79545]
[1749319459553,0.79548,2512.8,2512.7,0.79546]
[1749319459851,2.60127468,2512.8,2512.7,0.79546]
[1749319461958,30.67134,2513.2,2512.7,0.79546]
[1749319461959,3.17355415,2513.6,2513.4,0.79526]
[1749319462252,5.54086317,2514.1,2512.8,1.98864]
[1749319462253,1.49098,2513.7,2513.2,3.21377669]
[1749319462454,1.49099,2513.7,2513.5,0.79523]
[1749319462650,1.49099,2513.7,2513.3,0.6665]
[1749319462651,0.6958,2513.7,2513.3,0.6665]
[1749319462848,0.6958,2513.7,2513.5,0.79522]
[1749319463048,1.49099,2513.7,2513.4,0.79524]
[1749319463249,0.79529,2513.3,2513.2,3.87167669]
[1749319463451,4.00309,2513.3,2513.2,0.00597669]
[1749319463851,2.688,2513.3,2513.2,0.80130669]
[1749319464157,1.3444,2513.3,2513.2,0.80130669]
[1749319465160,0.6553,2513.3,2513.2,0.80130669]
[1749319468964,4.604,2513.9,2513.4,1.98817]
[1749319469259,5.2824,2513.9,2513.4,3.2078]
[1749319469566,6.07751,2513.9,2513.7,0.79515]
[1749319469756,7.34581,2513.9,2513.7,0.79515]
[1749319470157,6.5507,2513.9,2513.8,0.79514]
[1749319470458,5.2824,2513.9,2513.8,0.79514]
[1749319471763,6.07752,2513.9,2513.7,0.79517]
[1749319471964,5.2824,2513.9,2513.8,0.79514]
[1749319472169,5.39902,2514.2,2514.0,0.79506]
[1749319472369,6.03522,2514.2,2513.9,0.79509]
[1749319472669,6.03522,2514.2,2514.0,0.79507]
[1749319472964,0.6362,2514.2,2514.1,0.79504]
[1749319473159,4.604,2514.3,2514.1,0.79502]
[1749319473358,5.39898,2514.3,2514.1,0.79502]
[1749319473560,0.6459,2514.2,2514.0,0.79507]
[1749319473761,1.44094,2514.2,2514.0,0.79506]
[1749319473963,0.6459,2514.2,2514.0,0.79506]
[1749319474165,0.6459,2514.2,2513.8,0.6774]
[1749319474366,1.12191833,2514.1,2514.0,0.79507]
[1749319474567,1.12191617,2514.1,2514.0,0.79507]